[Event "Krakow Championship-A 2022"]
[Site "Krakow"]
[Date "2022.07.02"]
[Round "9.2"]
[White "Nguyen, Piotr"]
[Black "Leniart, Arkadiusz"]
[Result "0-1"]
[ECO "A06"]
[WhiteElo "2402"]
[BlackElo "2473"]
[Annotator "TA"]
[PlyCount "82"]
[EventDate "2022.06.25"]
[EventType "swiss"]
[EventCountry "POL"]
[SourceTitle "playchess.com"]
[Source "ChessBase"]
[SourceQuality "1"]
[TimeControl "40/5400+30:1800+30"]

{[%evp 9,82,12,11,6,13,9,21,24,22,20,10,20,23,0,0,5,13,18,62,56,57,62,54,55,64,54,57,57,137,137,147,152,145,137,181,175,207,177,164,0,0,-54,209,208,209,179,211,0,0,0,0,0,8,0,0,0,0,-604,-597,-583,-597,-596,-582,-570,-555,-570,-566,-545,-540,-1379,-1378,-5265,-4822,-1238,-1023]} 1. Nf3 {[%emt 0:00:03]} d5 {[%emt 0:00:05]} 2. g3 {[%emt 0:00:08]} Bg4 {[%emt 0:00:05]} 3. Bg2 {[%emt 0:00:06]} Nd7 {[%emt 0:00:05]} 4. c4 {[%emt 0:00:13]} e6 {[%emt 0:00:05]} 5. d4 {[%emt 0:00:13]} c6 {[%emt 0:01:46]} 6. h3 {[%emt 0:00:23] A07: Réti Opening: New York and Capablanca Systems.} Bxf3 {[%emt 0:04:15]} 7. Bxf3 {[%emt 0:00:05] [#]} dxc4 $146 {[%emt 0:03:47]} ({Predecessor:} 7... Ngf6 8. O-O Be7 9. Qb3 Qb6 10. Rd1 O-O 11. Nc3 Qa6 12. cxd5 exd5 13. Bf4 Rfe8 {0-1 (94) Zimina,O (2395)-Osmak,I (2348) Riga 2017}) 8. O-O {[%emt 0:03:46] The position is equal.} Ngf6 {[%emt 0:02:58][%cal Bg8f6,Bf6d5,Bd5b4,Bb4d3][%mdl 32]} 9. Nd2 {[%emt 0:02:40][%mdl 1024] White has compensation.} Nb6 {[%emt 0:01:57]} 10. e3 {[%emt 0:00:16]} Nfd5 {[%emt 0:04:28]} 11. Qc2 {[%emt 0:05:44]} (11. Qe2 $5 {[%cal Rd2c4]}) 11... Nb4 {[%emt 0:02:14] Pair of Knights!} 12. Qb1 {[%emt 0:03:25]} h5 {[%emt 0:13:08]} 13. a3 {[%emt 0:03:24]} Nd3 {[%emt 0:01:01]} 14. b3 $1 {[%emt 0:00:13][%cal Bb2b3,Bb3b4,Bb4b5,Bb5c6,Bc6c7][%mdl 96] Deflection} (14. Nxc4 Nxc4 15. Qxd3 Ne5 $11) 14... c3 {[%emt 0:03:38]} 15. Qxd3 {[%emt 0:02:12]} cxd2 {[%emt 0:00:03]} 16. Bxd2 {[%emt 0:00:42]} h4 {[%emt 0:00:06]} 17. g4 {[%emt 0:00:36]} Bd6 {[%emt 0:02:57]} 18. b4 {[%emt 0:03:38]} Bc7 {[%emt 0:04:55]} (18... a6 $14) 19. b5 $1 $16 {[%emt 0:03:44]} (19. e4 $6 Qd7 $14) 19... Qd6 {[%emt 0:10:54][%csl Gc7][%cal Rd6h2]} 20. Rfc1 {[%emt 0:00:29][%cal Rb5c6]} Nd5 {[%emt 0:00:34]} 21. bxc6 {[%emt 0:04:47]} b6 {[%emt 0:01:16]} 22. Kf1 {[%emt 0:09:30]} Rd8 {[%emt 0:02:31]} 23. Qa6 {[%emt 0:12:03]} O-O {[%emt 0:03:40]} 24. Bxd5 $2 {[%emt 0:03:32]} (24. Qxa7 Ra8 25. Qb7 Rfb8 $17) (24. Bb4 $18 Nxb4 25. axb4) 24... Qxd5 $11 {[%emt 0:09:43]} 25. Qxa7 {[%emt 0:02:49]} ({White should try} 25. Ke2 $11) 25... Bg3 $2 {[%emt 0:00:35][%mdl 8192]} 26. c7 $1 $18 {[%emt 0:07:27]} (26. fxg3 $2 Qf3+ 27. Kg1 hxg3 $19) 26... Rc8 {[%emt 0:06:33][%cal Of7f5] aiming for ...f5!} 27. Qxb6 {[%emt 0:07:47]} (27. fxg3 Qf3+ 28. Kg1 hxg3 $19) (27. Ke2 $6 Qg2 $16) 27... Rxc7 {[%emt 0:03:28][%cal Od5f3] [#] Hoping for ...Qf3!} 28. Ke2 {[%emt 0:00:19] Against Qf3+} ({And not} 28. Rxc7 Bxc7 29. Qxc7 Qh1+ 30. Ke2 Qxa1 $11) (28. fxg3 $2 Qf3+ 29. Kg1 {[#]} hxg3 $1 $19) (28. Kg1 $1 $18 Qf3 29. Be1 Rxc1 30. Rxc1) 28... Rxc1 $11 {[%emt 0:02:17]} 29. Rxc1 {[%emt 0:00:32]} (29. Bxc1 $2 {loses.} Qg2 30. Bd2 Rb8 $19) 29... Qg2 {[%emt 0:00:05][%csl LRf2,LRh3]} 30. Be1 {[%emt 0:01:47]} Qxh3 {[%emt 0:01:14]} 31. fxg3 {[%emt 0:01:00] Strongly threatening Bb4.} Qg2+ {[%emt 0:00:16]} 32. Kd3 {[%emt 0:02:36]} Qf1+ {[%emt 0:01:25]} 33. Ke4 $2 {[%emt 0:06:04][%mdl 8192]} ({Wrong is} 33. Kd2 $2 h3 34. Kc2 h2 $19) (33. Kc2 $11 Rc8+ 34. Kd2 Qg2+ 35. Kd1 Qf3+ 36. Kd2 Qg2+ 37. Kd1 Qf3+ 38. Kd2 Qg2+) 33... h3 $19 {[%emt 0:03:29] Black is clearly winning.} 34. Bd2 {[%emt 0:03:56] [#]} Qxc1 {[%emt 0:00:29][%mdl 576] Promotion} 35. Bxc1 {[%emt 0:00:05]} h2 {[%emt 0:00:04]} 36. Kd3 {[%emt 0:05:26]} h1=Q {[%emt 0:00:07] Prevents Qb7.} 37. Qc7 {[%emt 0:00:38]} Qf1+ {[%emt 0:00:58]} 38. Kd2 {[%emt 0:02:21]} Qa6 {[%emt 0:00:14] ...Rc8 is the strong threat.} 39. Bb2 {[%emt 0:01:57]} Rc8 {[%emt 0:00:36]} 40. Qe5 {[%emt 0:00:31]} Qc4 {[%emt 0:00:37] ( -> ...Qc2+)} 41. Qe4 {[%emt 0:05:45] Prevents Qc2+.} Qb3 {[%emt 0:00:35] Black used his chance.  Weighted Error Value: White=0.52/Black=0.18 (very precise)} 0-1

[Event "Krakow Championship-A 2022"]
[Site "Krakow"]
[Date "2022.07.02"]
[Round "9.3"]
[White "Zwardon, Vojtech"]
[Black "Klimkowski, Jan"]
[Result "1/2-1/2"]
[ECO "A16"]
[WhiteElo "2482"]
[BlackElo "2401"]
[Annotator "TA"]
[PlyCount "78"]
[EventDate "2022.06.25"]
[EventType "swiss"]
[EventCountry "POL"]
[SourceTitle "playchess.com"]
[Source "ChessBase"]
[SourceQuality "1"]
[TimeControl "40/5400+30:1800+30"]

{[%evp 11,78,0,0,-8,0,-13,0,-28,-21,-35,-43,-35,-20,-47,-33,-60,0,-2,-14,-25,18,3,31,20,25,11,11,21,11,12,28,0,0,0,0,0,29,19,19,24,24,0,51,16,33,18,22,19,29,14,41,31,41,41,42,34,34,0,29,29,29,29,29,29,33,33,34,29,84]} 1. c4 {[%emt 0:10:30]} Nf6 {[%emt 0:00:10]} 2. Nc3 {[%emt 0:00:02]} g6 {[%emt 0:00:11]} 3. g3 {[%emt 0:00:01]} Bg7 {[%emt 0:00:07]} 4. Bg2 {[%emt 0:00:01]} d6 {[%emt 0:00:25]} 5. d3 {[%emt 0:00:05]} O-O {[%emt 0:00:08]} 6. Bg5 {[%emt 0:00:06]} h6 {[%emt 0:00:07]} 7. Bd2 {[%emt 0:00:03] A16: English Opening: 1...Nf6 with ...d5.} e5 {[%emt 0:00:31]} 8. Qc1 {[%emt 0:00:40]} Kh7 {[%emt 0:00:12]} 9. h4 {[%emt 0:00:02][%cal Oh4h5] The position is equal.} Nc6 {[%emt 0:01:14]} 10. Rb1 {[%emt 0:00:00]} a5 {[%emt 0:02:03] [#]} 11. a3 $146 {[%emt 0:00:55]} ({Predecessor:} 11. Nh3 Nh5 12. Nd5 f5 13. Bc3 Rf7 14. Qd2 Be6 15. e3 Qd7 16. Ng1 f4 17. gxf4 exf4 18. Bxg7 fxe3 19. fxe3 Rxg7 {0-1 (42) Dinh,D (2363)-Nguyen,S (2037) Ho Chi Minh City 2012}) 11... Be6 {[%emt 0:08:46]} 12. b4 {[%emt 0:00:16]} axb4 {[%emt 0:01:20]} 13. axb4 {[%emt 0:00:01]} Qc8 {[%emt 0:08:58]} (13... d5 $15) 14. Nd5 {[%emt 0:05:07]} (14. b5 $5 {[%cal Rb5c6]} Ne7 15. Qc2 $11) 14... Bxd5 {[%emt 0:08:14]} 15. cxd5 {[%emt 0:03:42]} Ne7 {[%emt 0:00:19]} 16. Qc4 {[%emt 0:00:41]} Qd7 {[%emt 0:05:11]} 17. b5 {[%emt 0:02:46]} Nc8 {[%emt 0:01:37][%cal Be7c8,Bc8b6,Bb6a4,Ba4c5][%mdl 32]} 18. Bh3 {[%emt 0:04:19] A strong pair of Bishops.} Qe7 {[%emt 0:01:00]} 19. e4 {[%emt 0:00:27]} Nb6 {[%emt 0:01:34]} 20. Qc2 {[%emt 0:00:30]} Na4 {[%emt 0:05:26]} 21. Be3 {[%emt 0:01:41]} b6 {[%emt 0:02:56]} 22. Nf3 {[%emt 0:02:42][%cal Bg1f3,Bf3d2,Bd2c4][%mdl 32]} Nc5 {[%emt 0:01:48]} 23. Nd2 {[%emt 0:00:52]} Nfd7 {[%emt 0:07:09]} 24. h5 {[%emt 0:00:32]} Ra7 {[%emt 0:09:11]} 25. Nc4 {[%emt 0:04:49]} Rfa8 {[%emt 0:01:43]} 26. Ke2 {[%emt 0:05:03]} g5 {[%emt 0:05:28]} ({Black should play} 26... Nf6 $11) 27. Rhd1 {[%emt 0:02:28]} Kg8 {[%emt 0:00:42]} 28. Bf5 {[%emt 0:00:10]} Nf6 {[%emt 0:01:19]} 29. g4 {[%emt 0:02:18]} Ne8 {[%emt 0:00:31]} 30. Qc3 {[%emt 0:05:01]} Na4 {[%emt 0:00:39]} 31. Qe1 {[%emt 0:00:10]} Nc5 {[%emt 0:00:18]} 32. Ra1 {[%emt 0:04:13]} Qd8 {[%emt 0:02:15]} 33. Rxa7 Rxa7 {[%emt 0:00:04]} 34. Kf3 {[%emt 0:08:26]} (34. Ra1 $5 {[%cal Ra1a7]} Qa8 35. Rxa7 Qxa7 36. Qd2 $14) 34... Bf6 {[%emt 0:02:06]} 35. Qc3 {[%emt 0:05:31]} Ra8 {[%emt 0:02:37]} 36. Bxc5 {[%emt 0:01:14]} dxc5 {[%emt 0:00:46]} 37. Ra1 {[%emt 0:00:12]} (37. Nxe5 $2 Nd6 38. Qb2 Nxf5 39. gxf5 Qd6 $19) 37... Rxa1 {[%emt 0:05:19]} 38. Qxa1 {[%emt 0:00:11]} Nd6 {[%emt 0:00:07]} 39. Qa6 {[%emt 0:02:37]} ({Not} 39. Nxe5 Nxf5 40. gxf5 Qd6 41. Qa8+ Kg7 42. Nxf7 (42. d4 $2 cxd4 43. Nd3 Qh2 $19) 42... Kxf7 $19) 39... Nxc4 {[%emt 0:00:35] Weighted Error Value: White=0.08 (flawless) /Black=0.11 (very precise)} (39... Be7 $11) 1/2-1/2

[Event "Krakow Championship-A 2022"]
[Site "Krakow"]
[Date "2022.07.02"]
[Round "9.4"]
[White "Pechac, Jergus"]
[Black "Skytte, Rasmus"]
[Result "1-0"]
[ECO "D31"]
[WhiteElo "2597"]
[BlackElo "2357"]
[Annotator "TA"]
[PlyCount "45"]
[EventDate "2022.06.25"]
[EventType "swiss"]
[EventCountry "POL"]
[SourceTitle "playchess.com"]
[Source "ChessBase"]
[SourceQuality "1"]
[TimeControl "40/5400+30:1800+30"]

{[%evp 9,45,22,20,29,44,42,51,54,51,30,45,51,56,45,72,78,71,85,75,83,103,98,112,118,114,107,98,99,424,434,435,441,411,437,447,429,757,721]} 1. c4 {[%emt 0:00:03]} e6 {[%emt 0:01:07][%cal Be7e6,Be6d5][%mdl 32]} 2. Nc3 {[%emt 0:00:11]} d5 {[%emt 0:00:23]} 3. d4 {[%emt 0:00:06]} a6 {[%emt 0:00:59]} 4. cxd5 {[%emt 0:00:24]} exd5 {[%emt 0:00:08]} 5. Qb3 {[%emt 0:00:09]} Nf6 {[%emt 0:09:46]} 6. Bg5 {[%emt 0:00:11] D31: Queen's Gambit Declined: Semi-Slav without ...Nf6 (+ Marshall Gambit and Noteboom) and Exchange Variation lines without ...Nf6.} c6 {[%emt 0:02:55]} 7. e4 {[%emt 0:00:08] [#]} h6 $146 {[%emt 0:03:22]} ({Reject} 7... dxe4 8. O-O-O $11) ({Predecessor:} 7... dxe4 8. Bc4 Qe7 9. a4 h6 10. Bh4 g5 11. Bg3 Bg7 12. h4 O-O 13. hxg5 hxg5 {1-0 (44) Dreev,A (2623)-Deac,B (2679) Chess.com INT 2022}) 8. Bxf6 {[%emt 0:02:07] White is slightly better.} Qxf6 {[%emt 0:03:14]} 9. exd5 {[%emt 0:00:42]} Bd6 {[%emt 0:00:50]} 10. Nf3 {[%emt 0:00:53]} O-O {[%emt 0:00:43]} 11. Be2 {[%emt 0:00:07]} Qg6 {[%emt 0:14:07]} 12. O-O {[%emt 0:04:26]} cxd5 {[%emt 0:00:19]} 13. Nxd5 {[%emt 0:01:01][%cal Bc3d5,Bd5b6,Bb6c4][%mdl 32] Black must now prevent Ne5.} Nc6 {[%emt 0:03:16] [#] Against Ne5. And now ...Qh5 would win.} 14. Nb6 {[%emt 0:02:07] Pair of Knights!} Qh5 {[%emt 0:11:35] aiming for ...Nxd4.} 15. Rfd1 {[%emt 0:04:51][%cal Bf1d1,Bd1d5,Bd5c5][%mdl 32]} (15. Nxa8 $2 {is the wrong capture.} Nxd4 16. Rfd1 Nxb3 17. axb3 {[#]} Bxh2+ $1 {[%mdl 512]} 18. Nxh2 Qxe2 $19) 15... Rb8 {[%emt 0:11:29]} 16. h3 {[%emt 0:07:23]} Bf5 {[%emt 0:05:22]} 17. d5 $36 {[%emt 0:05:28][%cal Bd4d5,Bd5d6][%mdl 2080] White is really pushing.} Ne7 {[%emt 0:02:35]} 18. Nc4 {[%emt 0:06:42]} Bc5 {[%emt 0:01:47][%mdl 8192] Loses the game.} (18... Qg6 $16 {is more resistant.}) 19. d6 $18 {[%emt 0:02:42]} Ng6 {[%emt 0:06:18][%cal Be7g6,Bg6f4,Bf4e2][%mdl 32]} 20. Rd5 {[%emt 0:01:03]} Nf4 {[%emt 0:01:48] Prevents Bd3.} 21. Rxc5 {[%emt 0:00:11] The board is on fire.} Nxe2+ {[%emt 0:00:08]} 22. Kh2 {[%emt 0:00:04]} Rbc8 {[%emt 0:04:09]} (22... b6 $142) 23. g4 {[%emt 0:00:51] Weighted Error Value: White=0.01 (flawless) /Black=0.42} 1-0

[Event "Krakow Championship-A 2022"]
[Site "Krakow"]
[Date "2022.07.02"]
[Round "9.5"]
[White "Danielyan, Vahe"]
[Black "Rozentalis, Eduardas"]
[Result "1-0"]
[ECO "B13"]
[WhiteElo "2324"]
[BlackElo "2523"]
[Annotator "TA"]
[PlyCount "133"]
[EventDate "2022.06.25"]
[EventType "swiss"]
[EventCountry "POL"]
[SourceTitle "playchess.com"]
[Source "ChessBase"]
[SourceQuality "1"]
[TimeControl "40/5400+30:1800+30"]

{[%evp 20,133,52,42,57,61,53,47,46,48,48,45,61,50,70,26,26,32,18,22,29,25,34,36,39,45,47,22,65,24,31,0,0,0,46,45,42,44,51,51,51,51,51,51,51,49,52,33,33,33,33,-41,-51,-134,-112,-198,0,0,-16,-10,18,15,158,75,175,159,289,257,329,206,175,184,189,199,179,191,227,220,206,159,192,191,404,391,345,336,409,409,409,380,376,276,276,276,276,276,268,181,124,132,154,106,192,172,177,142,544,544,539,486,481,455,894,886,856,829]} 1. e4 {[%emt 0:00:04]} c6 {[%emt 0:00:11]} 2. d4 {[%emt 0:00:05]} d5 {[%emt 0:00:06]} 3. exd5 {[%emt 0:00:04]} cxd5 {[%emt 0:00:04]} 4. Bd3 {[%emt 0:00:04]} Nc6 {[%emt 0:00:30]} 5. c3 {[%emt 0:00:12]} Nf6 {[%emt 0:00:49]} 6. Bf4 {[%emt 0:00:10]} g6 {[%emt 0:00:55]} 7. Nf3 {[%emt 0:01:15]} Bg7 {[%emt 0:02:35]} 8. O-O {[%emt 0:00:16]} O-O {[%emt 0:00:19]} 9. Nbd2 {[%emt 0:00:14]} Bf5 {[%emt 0:01:04] is recently more successful than 9...Nh5.} 10. Bxf5 {[%emt 0:00:14]} gxf5 {[%emt 0:00:05]} 11. Ne5 {[%emt 0:00:12]} e6 {[%emt 0:05:19] B13: Caro-Kann: Exchange Variation and Panov-Botvinnik Attack.} 12. Nxc6 {[%emt 0:02:41]} bxc6 {[%emt 0:00:17] [#]} 13. a4 $146 {[%emt 0:05:02][%cal Ba2a4,Ba4a5,Ba5a6][%mdl 32]} ({Predecessor:} 13. Nb3 Ne4 14. f3 Nd6 15. g4 fxg4 16. fxg4 Ne4 17. Nd2 f5 18. gxf5 exf5 19. Nf3 {0-1 (31) Fedoseev,V (2674)-Sevian,S (2660) Chess.com INT 2020}) 13... Qe7 {[%emt 0:04:27] White is slightly better.} 14. Nb3 {[%emt 0:02:42] Against c5} Ne4 {[%emt 0:01:35]} 15. a5 {[%emt 0:03:18]} Kh8 {[%emt 0:03:33]} 16. a6 {[%emt 0:04:59]} Rg8 {[%emt 0:06:08]} 17. f3 {[%emt 0:06:33]} (17. Qh5 $5 {[%cal Rf2f3]}) 17... Nf6 {[%emt 0:07:15]} 18. Bg5 {[%emt 0:00:22]} Qc7 {[%emt 0:05:10]} 19. Nc5 {[%emt 0:01:24]} Nd7 {[%emt 0:06:48]} 20. b4 {[%emt 0:00:24]} Nb6 {[%emt 0:11:01]} 21. f4 {[%emt 0:03:08]} f6 {[%emt 0:07:10]} 22. Bh4 {[%emt 0:01:05]} (22. Nxe6 Qf7 23. Re1 (23. Nxg7 $2 Qxg7 24. Qh5 fxg5 $19) 23... fxg5 24. Nxg5 Qg6 $17) 22... Qf7 {[%emt 0:00:09] Inhibits Qh5.} 23. Ra2 {[%emt 0:06:05]} Nc4 {[%emt 0:09:06]} 24. Re2 {[%emt 0:00:05] Inhibits Ne3.} (24. Re1 $5 {[%cal Re1e6]}) 24... Rae8 {[%emt 0:00:45]} 25. Bg3 {[%emt 0:00:50]} (25. Rfe1 $5 {[%cal Re2e6]} e5 26. Qa4 $11) 25... Nd6 $1 {[%emt 0:04:47]} 26. Qa4 {[%emt 0:04:06]} Nb5 {[%emt 0:04:58]} (26... Rc8 $1 $11) 27. Rf3 $14 {[%emt 0:00:26]} Bf8 {[%emt 0:01:19]} 28. Nb7 {[%emt 0:03:11]} Qd7 {[%emt 0:04:11]} 29. Rfe3 {[%emt 0:03:33]} Bd6 {[%emt 0:01:30]} 30. Qd1 {[%emt 0:00:34]} Rg4 {[%emt 0:03:00]} 31. Qe1 {[%emt 0:01:23][%cal Re3e6]} Nc7 {[%emt 0:00:24]} 32. h3 {[%emt 0:02:01]} Rg6 {[%emt 0:00:38]} 33. Bh2 {[%emt 0:00:31]} ({Of course not} 33. Nxd6 Qxd6 34. Kh1 Reg8 $11) 33... Reg8 {[%emt 0:02:22]} 34. Kh1 {[%emt 0:00:46]} Bf8 {[%emt 0:02:09]} 35. g4 {[%emt 0:00:49]} (35. Qa1 $14) 35... fxg4 $15 {[%emt 0:04:57]} 36. f5 {[%emt 0:02:56]} (36. Nc5 $1 $15 Bxc5 37. bxc5) 36... exf5 $17 {[%emt 0:00:05]} 37. Nc5 {[%emt 0:00:13]} (37. Bg3 $17 Qc8 38. h4) 37... Bxc5 $2 {[%emt 0:00:25]} (37... Qg7 $19 38. Rg2 Bxc5 39. bxc5 gxh3 40. Rxg6 Qxg6) 38. bxc5 $11 {[%emt 0:00:04]} g3 {[%emt 0:02:09]} (38... Nxa6 39. Re7 Qd8 40. Qh4 $18) 39. Bxg3 {[%emt 0:01:11]} f4 {[%emt 0:00:30]} ({Don't do} 39... Nxa6 40. Re7 Qxe7 41. Rxe7 Rxg3 42. Qf1 $18) 40. Bxf4 {[%emt 0:00:59] Active counter play!} Qg7 {[%emt 0:00:48]} (40... Ne8 $1 $11) 41. Bh2 {[%emt 0:32:00]} ({White should try} 41. Qf2 $1 Nb5 42. Kh2) 41... Nb5 {[%emt 0:07:24]} (41... Rg2 $16) 42. Qf1 $18 {[%emt 0:00:00]} Qh6 {[%emt 0:03:29]} (42... Rf8 $16 43. Re7 Qh6) 43. Rf3 $1 {[%emt 0:00:00]} Na3 {[%emt 0:05:36]} 44. Ref2 {[%emt 0:00:00][%cal Rf3f6]} Nc4 {[%emt 0:00:17]} 45. Rxf6 {[%emt 0:00:00]} Rxf6 {[%emt 0:00:45]} 46. Rxf6 {[%emt 0:00:00]} Qe3 {[%emt 0:00:07]} 47. Rf3 {[%emt 0:00:00]} Qe4 {[%emt 0:03:49]} 48. Qd3 {[%emt 0:00:00]} Qxd3 {[%emt 0:02:18]} 49. Rxd3 {[%emt 0:00:00][%mdl 4096] Endgame aiming for Rf3. KRB-KRN} Rf8 {[%emt 0:00:04] Against Rf3} 50. Kg2 {[%emt 0:00:00] Inhibits Rf1.} Kg7 $2 {[%emt 0:00:51]} (50... Re8) 51. Rg3+ {[%emt 0:00:00]} Kh6 {[%emt 0:00:41]} 52. Rf3 {[%emt 0:00:00][%cal Bg3f3,Bf3f6,Bf6d6,Bd6d7,Bd7b7][%mdl 32]} Rg8+ {[%emt 0:01:30]} 53. Kf2 {[%emt 0:00:00]} Na3 {[%emt 0:00:12]} 54. Rf6+ {[%emt 0:00:00]} Rg6 {[%emt 0:00:34]} 55. Rd6 {[%emt 0:00:00] And now Bf4+ would win.} Nb5 {[%emt 0:01:24]} 56. Bf4+ {[%emt 0:00:00]} Kh5 {[%emt 0:00:41]} 57. Rd7 {[%emt 0:01:25]} h6 {[%emt 0:00:10]} 58. Rb7 {[%emt 0:05:01]} Kh4 {[%emt 0:02:01]} 59. Rh7 {[%emt 0:11:06]} h5 {[%emt 0:01:18]} 60. Bb8 {[%emt 0:01:58]} (60. Kf3 $142 $1) 60... Rg8 {[%emt 0:02:07]} (60... Kxh3 $16 61. Bxa7 (61. Rxh5+ Kg4 $16) 61... Rg3) 61. Bxa7 {[%emt 0:00:28] Threatens to win with Bb6.} Rf8+ {[%emt 0:02:08] [#]} 62. Kg2 $1 {[%emt 0:02:35]} Nxc3 $2 {[%emt 0:00:28][%mdl 8192]} (62... Rg8+ $16 {is tougher.} 63. Kh2 Rf8) 63. Bb6 {[%emt 0:01:30] Hoping for Rd7. White is clearly winning.} Nd1 {[%emt 0:01:00] [#]} 64. Re7 $1 {[%emt 0:01:29] Against Ne3+} Rf2+ {[%emt 0:00:15]} 65. Kg1 {[%emt 0:00:04] Re8 is the strong threat.} Ra2 {[%emt 0:00:47]} (65... Rf8 $142 66. a7 Nc3) 66. a7 {[%emt 0:00:55]} Nf2 {[%emt 0:02:00]} 67. Re8 {[%emt 0:00:53] Never resign too early!  Weighted Error Value: White=0.18 (very precise) /Black=0.26 (precise)} 1-0

[Event "Krakow Championship-A 2022"]
[Site "Krakow"]
[Date "2022.07.02"]
[Round "9.6"]
[White "Holtel, Jasper"]
[Black "Romanishin, Oleg M"]
[Result "1/2-1/2"]
[ECO "A05"]
[WhiteElo "2347"]
[BlackElo "2400"]
[Annotator "TA"]
[PlyCount "43"]
[EventDate "2022.06.25"]
[EventType "swiss"]
[EventCountry "POL"]
[SourceTitle "playchess.com"]
[Source "ChessBase"]
[SourceQuality "1"]
[TimeControl "40/5400+30:1800+30"]

{[%evp 25,26,29,27]} 1. Nf3 {[%emt 0:00:02]} Nf6 {[%emt 0:00:16]} 2. g3 {[%emt 0:00:24]} d5 {[%emt 0:01:19]} 3. Bg2 {[%emt 0:00:18]} g6 {[%emt 0:00:04]} 4. d4 {[%emt 0:00:22]} Bg7 {[%emt 0:00:05]} 5. c4 {[%emt 0:00:15]} dxc4 {[%emt 0:00:11]} 6. Na3 {[%emt 0:00:10]} O-O {[%emt 0:00:17]} 7. O-O {[%emt 0:00:12]} Nc6 {[%emt 0:00:57]} 8. Nxc4 {[%emt 0:00:42]} Be6 {[%emt 0:00:06]} 9. b3 {[%emt 0:00:42]} Bd5 {[%emt 0:00:06]} 10. Bb2 {[%emt 0:01:00]} a5 {[%emt 0:00:05]} 11. Rc1 {[%emt 0:01:22]} a4 {[%emt 0:00:16]} 12. bxa4 {[%emt 0:00:42]} Ra6 {[%emt 0:00:06]} 13. a3 {[%emt 0:03:06]} Qa8 {[%emt 0:01:42] [#]} {Predecessor:} 14. Ne3 $146 {D77: Fianchetto Grünfeld: 6 0-0: Replies other than 6...c6.} Be4 15. d5 Rd8 16. Bxf6 Bxf6 17. Nd2 Bxg2 18. Kxg2 Ne5 19. Rxc7 Rxa4 20. Qb3 Rxa3 21. Qxb7 Qxb7 22. Rxb7 {½-½ (43) Huzman,A (2552)-Dvoirys,S (2552) Jerusalem 2017} 1/2-1/2